Cogmind - Beta 13 @@@ ROGUE MODE // 2024.07.12 @ 01:47:03 Player: ThatBishHoly Result: Core destroyed Performance ------------- Evolutions (1) 500 Regions Visited (5) 1000 Robots Destroyed (64) 320 Value Destroyed (2261) 2261 Prototype IDs (9) 180 Alien Tech Used (0) 0 Bonus (1265) 1265 TOTAL SCORE: 5526 Bonus ------- High Alert Combat Kills 211 Follower Combat Kills 354 Entered Garrisons 200 Used RIF Installer 500 Cogmind --------- Core Integrity 0/400 Matter 293/300 Energy 250/250 System Corruption 1% Temperature Cool (28) Movement Rolling (95) Ox1 Location -9/Recycling Parts ------- > --- POWER (1) -------- Ion Engine > --- PROPULSION (2) --- Wheel Wheel > --- UTILITY (4) ------ Large Storage Unit Signal Interpreter Targeting Computer Drone Bay (0/2) > --- WEAPON (2) ------- Advanced Beam Rifle Advanced Beam Rifle > --- INVENTORY (15) --- Scrap Engine Relay Coupler [Grunt] (23) Relay Coupler [Brawler] (29) Relay Coupler [Sentry] (22) Relay Coupler [Sentry] (21) Relay Coupler [Demolisher] (22) Relay Coupler [Specialist] (19) Relay Coupler [Hunter] (17) Drone Bay (2/2) Advanced Beam Rifle Plasma Cutter Katana Katana Peak State ------------ > --- POWER ------------ Heavy Ion Engine > --- PROPULSION ------- Aluminum Leg Carbon-fiber Leg > --- UTILITY ---------- Large Storage Unit Signal Interpreter Improved Light Armor Plating Improved Light Armor Plating > --- WEAPON ----------- Advanced Beam Rifle Advanced Beam Rifle > --- INVENTORY -------- Targeting Computer Advanced Beam Rifle Advanced Beam Rifle Advanced Beam Cannon Improved Assault Rifle Katana Katana [Rating: 25] Favorites ----------- Power Ion Engine Engine Ion Engine Propulsion Aluminum Leg Leg Aluminum Leg Wheel Wheel Hover Unit Hover Unit Utility Signal Interpreter Device Sensor Array Storage Large Storage Unit Processor Signal Interpreter Protection Improved Light Armor Plating Weapon Advanced Beam Rifle Energy Gun Advanced Beam Rifle Energy Cannon Beam Cannon Ballistic Gun Improved Assault Rifle Launcher Grenade Launcher Slashing Weapon Katana Build | -11 -10 -9 -9 -9 -9 ------- Run | Yrd Mat Mat Sto Gar Rec Slots Evolved 2 | . . 2 . . . Power . | . . . . . . Propulsion . | . . . . . . Utility 2 | . . 2 . . . Weapon . | . . . . . . Parts Attached 56 | 6 9 7 25 8 1 Power 8 | 1 1 . 5 1 . Engine 8 | 1 1 . 5 1 . Core . | . . . . . . Reactor . | . . . . . . Propulsion 15 | 2 5 . 6 2 . Treads . | . . . . . . Leg 8 | 2 2 . 4 . . Wheel 4 | . . . 2 2 . Hover 3 | . 3 . . . . Flight . | . . . . . . Utility 11 | 1 1 5 3 . 1 Device 2 | . . 1 . . 1 Storage 3 | 1 1 1 . . . Processor 3 | . . 1 2 . . Hackware . | . . . . . . Protection 3 | . . 2 1 . . Artifact . | . . . . . . Weapon 22 | 2 2 2 11 5 . Energy Gun 16 | 2 1 . 10 3 . Energy Cannon 1 | . 1 . . . . Ballistic Gun 1 | . . . 1 . . Ballistic Cannon . | . . . . . . Launcher 1 | . . 1 . . . Special Weapon . | . . . . . . Impact Weapon . | . . . . . . Slashing Weapon 3 | . . 1 . 2 . Piercing Weapon . | . . . . . . Special Melee Weapon . | . . . . . . Unidentified Prototypes 7 | . . . 7 . . Parts Lost 16 | . 4 1 10 1 . Power 3 | . 1 . 2 . . Propulsion 7 | . 2 1 3 1 . Utility 3 | . . . 3 . . Weapon 3 | . 1 . 2 . . Highest Loss Streak 3 | . 2 1 3 1 . To Critical Strikes . | . . . . . . Average Slot Usage (%) 84 | . 75 95 85 82 100 Engine 9 | . 13 11 8 6 11 Leg 9 | . 10 18 11 . . Wheel 7 | . . . 7 21 22 Hover 2 | . 9 . . . . Device 1 | . . 11 . . 11 Storage 11 | . 14 11 11 11 11 Processor 13 | . . 11 17 22 22 Protection 5 | . . 10 9 . . Energy Gun 15 | . 15 6 15 19 22 Energy Cannon 2 | . 11 . . . . Launcher 2 | . . 11 2 . . Slashing Weapon 1 | . . 4 2 1 . Naked Turns . | . . . . . . Heaviest Build 38 | 13 20 34 38 29 35 Greatest Support 25 | 20 20 20 25 20 20 Greatest Overweight (x) 11 | . 4 3 11 2 1 Average Overweight (x) 1 | . 1 1 . 1 1 Largest Inventory Capacity 15 | 8 10 15 15 15 15 Average Capacity 13 | 6 9 13 15 15 15 Most Carried 14 | 5 5 8 12 14 14 Average Carried 6 | . 2 2 8 12 13 Final Capacity 15 | 8 10 15 15 15 15 Final Carried 14 | . 4 8 9 13 14 Class Distribution -------------------- 67% | Mutant 16% | Commander-Mutant 15% | Scavenger-Mutant Dominant Class ---------------- Mutant | -10/Materials Scavenger-Mutant | -9/Materials Mutant | -9/Storage Mutant | -9/Garrison Mutant | -9/Recycling Resources | -11 -10 -9 -9 -9 -9 ----------- Run | Yrd Mat Mat Sto Gar Rec Matter Collected 1145 | 260 152 65 507 161 . Remotely . | . . . . . . Salvage Created 2302 | . 336 294 1194 427 51 Parts 140 | . 16 17 76 26 5 Haulers Intercepted 4 | . 1 . 3 . . Recyclers Shooed 2 | . . . 2 . . Parts Field Recycled . | . . . . . . Retrieved Matter . | . . . . . . Parts Self-Destructed . | . . . . . . Prevented . | . . . . . . Kills | -11 -10 -9 -9 -9 -9 ------- Run | Yrd Mat Mat Sto Gar Rec Combat Hostiles Destroyed 49 | . 6 7 25 10 1 Melee 3 | . . 3 . . . Guns 27 | . 1 . 15 10 1 Cannons 5 | . 5 . . . . AOE 14 | . . 4 10 . . Classes Destroyed 10 | . 4 2 4 . . Worker 3 | . . . 3 . . Builder 2 | . 1 1 . . . Hauler 4 | . 1 . 3 . . Recycler 3 | . . 1 2 . . Watcher 3 | . 1 . 2 . . Swarmer 6 | . . . 4 2 . Grunt 27 | . 6 5 12 4 . Duelist 2 | . . . 2 . . Protector 2 | . . . 2 . . Sentry 12 | . . 2 5 4 1 Best Kill Streak 9 | . 4 5 9 5 1 Combat Bots Only 9 | . 3 3 9 5 1 Max Kills in Single Turn 3 | . 1 2 3 2 1 Gunslinging 1 | . . . . 1 . Exploded 3 | . . 2 3 . . Melee 1 | . . 1 . . . Uniques/NPCs Destroyed . | . . . . . . Combat | -11 -10 -9 -9 -9 -9 -------- Run | Yrd Mat Mat Sto Gar Rec Hostile Shots Fired 195 | . 44 46 90 13 2 Missed 49 | . 7 15 26 1 . Damage Taken 2119 | . 510 397 942 223 47 Core 553 | . 148 87 216 90 12 Absorbed by Shields 4 | . . . . 4 . Core Remaining (%) 70 | 100 40 . . . . Volleys Fired 138 | . 43 18 63 13 1 Largest 2 | . 2 2 2 2 2 Hottest 122 | . 110 80 122 122 122 Shots Fired 220 | . 61 19 112 26 2 Gun 170 | . 40 5 97 26 2 Cannon 21 | . 21 . . . . Launcher 29 | . . 14 15 . . Special . | . . . . . . Kinetic . | . . . . . . Thermal 191 | . 61 5 97 26 2 Explosive 29 | . . 14 15 . . Electromagnetic . | . . . . . . Robot Hit Streak 16 | . 4 16 9 8 3 Robot Miss Streak 4 | . 3 2 4 2 . Penetration Max . | . . . . . . Secondary Targets 2 | . . . 1 1 . Max Gunslinging Chain 1 | . . . 1 1 . Shots Hit Robots 127 | . 36 20 54 16 1 Core Hits 100 | . 15 20 53 10 2 Critical Kills . | . . . . . . Critical Parts Destroyed . | . . . . . . Critical Strikes 11 | . 1 1 5 4 . Burn 10 | . 1 . 5 4 . Sever 1 | . . 1 . . . Melee Attacks 7 | . . 5 . 2 . Impact . | . . . . . . Slashing 7 | . . 5 . 2 . Piercing . | . . . . . . Sneak Attacks . | . . . . . . Combat Hostiles . | . . . . . . Follow-up Attacks . | . . . . . . Damage Inflicted 3504 | . 532 537 2058 340 37 Guns 1869 | . 292 37 1180 340 20 Cannons 229 | . 229 . . . . Explosions 1244 | . . 373 871 . . Melee 127 | . . 127 . . . Ramming 35 | . 11 . 7 . 17 Kinetic . | . . . . . . Thermal 2098 | . 521 37 1180 340 20 Explosive 1244 | . . 373 871 . . Electromagnetic . | . . . . . . Impact . | . . . . . . Slashing 127 | . . 127 . . . Piercing . | . . . . . . Highest Corruption 1 | . . . 1 1 1 Average Corruption 1 | . . . 1 1 1 Corruption Purged . | . . . . . . Corruption Blocked . | . . . . . . Effects 7 | . . . 4 2 1 Message Errors 2 | . . . 1 . 1 Matter Fused 1 | . . . . 1 . Heat Flow Errors 1 | . . . 1 . . Energy Discharges 1 | . . . . 1 . Data Loss (minor) 1 | . . . 1 . . Misfires 1 | . . . 1 . . Overload Shots . | . . . . . . Overflow Damage . | . . . . . . Projectiles . | . . . . . . Explosions . | . . . . . . Melee . | . . . . . . Knockbacks 2 | . 1 . 1 . . Impact 2 | . 1 . 1 . . Kinetic . | . . . . . . Secondary . | . . . . . . Self-Inflicted Damage 106 | . 5 . 93 . 8 Shots 3 | . . . 3 . . Rammed 5 | . 2 . 1 . 2 Targets Rammed 6 | . 2 . 2 . 2 Kicked 1 | . . . 1 . . Crushed . | . . . . . . Highest Temperature 573 | . 573 49 438 471 51 Average Temperature 141 | . 165 17 131 171 32 Received Heat Transfer 837 | . 303 159 297 69 9 Effects 22 | . 13 . 4 5 . Shutdowns 2 | . 2 . . . . Energy Bleed 3 | . 1 . 2 . . Interference 1 | . 1 . . . . Matter Decay 3 | . 2 . . 1 . Short Circuit 2 | . 1 . . 1 . Damage (minor) 3 | . 3 . . . . Damage (major) 8 | . 3 . 2 3 . Siege Activations . | . . . . . . Robots Corrupted . | . . . . . . Combat Hostiles . | . . . . . . Parts Fried . | . . . . . . Impact Corruptions . | . . . . . . Robots Melted . | . . . . . . Combat Hostiles . | . . . . . . Parts Melted 12 | . 2 . 7 3 . Heat Transferred 4967 | . 1360 111 2553 906 37 Parts Sabotaged . | . . . . . . Parts Stolen . | . . . . . . Parts Stripped . | . . . . . . Power Chain Reactions . | . . . . . . Alert | -11 -10 -9 -9 -9 -9 ------- Run | Yrd Mat Mat Sto Gar Rec Peak Influence 906 | . 110 303 640 906 407 Initial 407 | . . 46 127 403 407 Average 328 | . 44 122 428 703 295 Maximum Alert Level 3 | . . 1 2 3 2 Low Security (%) 37 | 100 100 75 6 . . Level 1 18 | . . 24 29 . 75 Level 2 35 | . . . 64 36 25 Level 3 8 | . . . . 63 . Level 4 . | . . . . . . Level 5 . | . . . . . . High Security . | . . . . . . Max Security . | . . . . . . Squads Dispatched 8 | . 2 2 4 . . Investigation 3 | . 2 1 . . . Extermination . | . . . . . . Reinforcement 3 | . . 1 2 . . Assault 2 | . . . 2 . . Garrison . | . . . . . . Intercept . | . . . . . . Searches Triggered . | . . . . . . Construction Impeded 1 | . . 1 . . . Haulers Reinforced . | . . . . . . Active Scanning Responses . | . . . . . . Cargo Convoy Interrupts . | . . . . . . Stealth | -11 -10 -9 -9 -9 -9 --------- Run | Yrd Mat Mat Sto Gar Rec Distress Signals 5 | . 1 . 4 . . Communications Jammed . | . . . . . . Distress Signals . | . . . . . . Times Spotted 70 | . 10 7 38 14 1 Peak Tracking Total 10 | . 3 4 10 4 1 Tactical Retreats 1 | . . 1 . . . Traps | -11 -10 -9 -9 -9 -9 ------- Run | Yrd Mat Mat Sto Gar Rec Traps Triggered 10 | . 2 1 4 3 . Indirectly . | . . . . . . Trap Hack Attempts . | . . . . . . Triggered . | . . . . . . Disarmed . | . . . . . . Reprogrammed . | . . . . . . Reused . | . . . . . . Traps Extracted . | . . . . . . Installed . | . . . . . . Triggered . | . . . . . . Machines | -11 -10 -9 -9 -9 -9 ---------- Run | Yrd Mat Mat Sto Gar Rec Machines Disabled 8 | . . . 5 3 . Max in Single Turn 2 | . . . 2 1 . Garrison Relay 2 | . . . . 2 . Machines Repaired . | . . . . . . Machines Dismantled . | . . . . . . Machines Sabotaged . | . . . . . . Overloaded Fab Kills . | . . . . . . Hacking | -11 -10 -9 -9 -9 -9 --------- Run | Yrd Mat Mat Sto Gar Rec Machines Accessed 11 | . 1 . 6 1 3 Terminals 9 | . 1 . 5 1 2 Fabricators . | . . . . . . Repair Stations . | . . . . . . Recycling Units 1 | . . . . . 1 Scanalyzers . | . . . . . . Garrison Access 1 | . . . 1 . . Total Hacks 28 | . 3 . 16 1 8 Successful 16 | . 1 . 9 . 6 Failed 12 | . 2 . 7 1 2 Catastrophic 4 | . . . 2 . 2 Database Lockouts . | . . . . . . Manual 3 | . . . 2 1 . Terminals 25 | . 3 . 15 1 6 Fabricators . | . . . . . . Repair Stations . | . . . . . . Recycling Units 2 | . . . . . 2 Scanalyzers . | . . . . . . Garrison Access 1 | . . . 1 . . Terminal Hacks 13 | . 1 . 8 . 4 Robot Schematic 1 | . . . 1 . . Robot Analysis 1 | . . . 1 . . Prototype ID Bank 2 | . . . 1 . 1 Open Door 1 | . . . 1 . . Alert Level 2 | . . . 1 . 1 Unreport Threat 1 | . . . . . 1 Locate Traps 1 | . . . 1 . . Zone Layout 4 | . 1 . 2 . 1 Fabricator Hacks . | . . . . . . Repair Station Hacks . | . . . . . . Recycling Unit Hacks 2 | . . . . . 2 Process 1 | . . . . . 1 Retrieve Matter 1 | . . . . . 1 Scanalyzer . | . . . . . . Garrison Access Hacks 1 | . . . 1 . . Unlock Access 1 | . . . 1 . . Unauthorized Hacks . | . . . . . . Terminals . | . . . . . . Fabricators . | . . . . . . Repair Stations . | . . . . . . Recycling Units . | . . . . . . Scanalyzers . | . . . . . . Garrison Access . | . . . . . . Data Cores Recovered . | . . . . . . Used . | . . . . . . Hacking Detections 6 | . 1 . 3 . 2 Full Trace Events 1 | . 1 . . . . Feedback Events . | . . . . . . Feedback Blocked . | . . . . . . Robot Schematics Acquired 1 | . . . 1 . . Robots Built . | . . . . . . Authchips . | . . . . . . Time . | . . . . . . Total Robot Build Rating . | . . . . . . Part Schematics Acquired . | . . . . . . Parts Built . | . . . . . . Authchips . | . . . . . . Time . | . . . . . . Total Part Build Rating . | . . . . . . Parts Repaired . | . . . . . . Time . | . . . . . . Parts Recycled . | . . . . . . Recycled Matter . | . . . . . . Retrieved Matter . | . . . . . . Retrieved Components . | . . . . . . Parts Scanalyzed . | . . . . . . Part Schematics Acquired . | . . . . . . Parts Damaged . | . . . . . . Bothacking | -11 -10 -9 -9 -9 -9 ------------ Run | Yrd Mat Mat Sto Gar Rec Used RIF Installer 1 | . . . . 1 . Robots Hacked . | . . . . . . Non-combat . | . . . . . . Combat . | . . . . . . Robot Hacks Applied . | . . . . . . Relay Couplers Released 8 | . . . . 8 . Machine Destruction 8 | . . . . 8 . Fabnet Peak Effective % . | . . . . . . Robots Rewired . | . . . . . . Allies Hacked . | . . . . . . Hacks Repelled . | . . . . . . Allies | -11 -10 -9 -9 -9 -9 -------- Run | Yrd Mat Mat Sto Gar Rec Total Allies 12 | . . . 12 . . Largest Group 10 | . . . 10 8 . Highest-Rated Group 88 | . . . 88 72 . Highest-Rated Ally 31 | . . . 31 16 . Total Orders . | . . . . . . Ally Attacks 97 | . . . 35 62 . Total Damage 878 | . . . 328 550 . Kills 17 | . . . 6 11 . Allies Corrupted . | . . . . . . Allies Melted . | . . . . . . Intel | -11 -10 -9 -9 -9 -9 ------- Run | Yrd Mat Mat Sto Gar Rec Robot Analysis Total 1 | . . . 1 . . Derelict Logs Recovered . | . . . . . . Drone Launches 2 | . . . . . 2 Drone Recoveries . | . . . . . . Exploration | -11 -10 -9 -9 -9 -9 ------------- Run | Yrd Mat Mat Sto Gar Rec Turns Passed 2794 | 60 704 257 1309 384 80 Spaces Moved 1639 | 54 373 88 748 299 77 Core 64 | 23 28 . 13 . . Treads . | . . . . . . Legs 593 | 31 192 88 282 . . Wheels 829 | . . . 453 299 77 Hover 153 | . 153 . . . . Flight . | . . . . . . Fastest Speed 50 | 50 116 190 80 95 95 Average Speed 135 | 90 153 215 140 95 95 Slowest Speed 600 | 120 250 330 600 110 95 Overloaded Moves . | . . . . . . Propulsion Burnouts . | . . . . . . Robots Hopped . | . . . . . . Cave-ins Triggered . | . . . . . . Exploration Rate (%) 31 | 3 31 12 86 39 20 Regions Visited 5 Branch Regions 2 Pre-discovered Areas . | . . . . . . Known Exits Taken 2 | . . 1 1 . . Unknown Exits Taken 2 | 1 1 . . . . Scrap Searched . | . . . . . . Spaces Dug . | . . . . . . Terrain Destroyed 84 | . . 36 48 . . Melee . | . . . . . . Projectile . | . . . . . . AOE 84 | . . 36 48 . . Terrain Rammed . | . . . . . . Walls Destroyed . | . . . . . . Machines Disabled . | . . . . . . Actions | -11 -10 -9 -9 -9 -9 --------- Run | Yrd Mat Mat Sto Gar Rec Total 1976 | 65 445 130 887 368 81 Wait 34 | . . 3 3 28 . Move 1635 | 53 372 87 748 298 77 Hop . | . . . . . . Pick Up 61 | 6 13 9 24 8 1 Fast Attach . | . . . . . . Attach 36 | 6 5 5 15 4 1 Detach 1 | . . . . 1 . Swap 21 | . 4 2 11 4 . Drop 19 | . 6 1 10 2 . Fire 138 | . 43 18 63 13 1 Melee 7 | . . 5 . 2 . Ram 4 | . 2 . 1 . 1 Kick 1 | . . . 1 . . Crush . | . . . . . . Escape Stasis 16 | . . . 8 8 . Rewire 3 | . . . 3 . . Trap . | . . . . . . Miscellaneous . | . . . . . . Route ------- -11/Scrapyard -10/Materials -9/Materials -9/Storage -9/Garrison -9/Recycling History --------- Turn | Location | Event 8 | -11/Scrapyard | Discovered new exit (range 14) 61 | -11/Scrapyard | Entered Materials 302 | -10/Materials | Build established: Mutant 348 | -10/Materials | Discovered new exit (range 16) 524 | -10/Materials | Core integrity fell below 50% 765 | -10/Materials | Entered another Materials area 765 | -9/Materials | Evolved 2 slots: Utility x2 851 | -9/Materials | Build established: Scavenger-Mutant 868 | -9/Materials | Discovered new exit (range 15) 906 | -9/Materials | Identified exit to Storage 1022 | -9/Materials | Entered Storage 1042 | -9/Storage | Met a pair of Derelict thieves 1134 | -9/Storage | Lost 3 parts (1p1n1u) 1137 | -9/Storage | Destroyed 9 combat bots 1212 | -9/Storage | Build established: Mutant 1482 | -9/Storage | Core integrity fell below 50% 1535 | -9/Storage | Destroyed 7 combat bots 1988 | -9/Storage | Assisted by bots powering up and referring to "LRC-V3" 2283 | -9/Storage | Build established: Commander-Mutant 2331 | -9/Storage | Identified exit to Garrison 2331 | -9/Storage | Entered Garrison 2331 | -9/Garrison | Accompanied by 8 allies 2350 | -9/Garrison | Garrison Relay disabled 2453 | -9/Garrison | Triggered checkpoint 2516 | -9/Garrison | Lost 6 allies 2533 | -9/Garrison | Discovered new exit (range 10) 2545 | -9/Garrison | Installed Relay Interface Framework 2587 | -9/Garrison | Triggered checkpoint 2595 | -9/Garrison | Core integrity fell below 20% 2623 | -9/Garrison | Garrison Relay disabled 2714 | -9/Garrison | Identified exit to Recycling 2715 | -9/Garrison | Entered Recycling 2720 | -9/Recycling | Found Scrap Engine 2755 | -9/Recycling | Build established: Mutant 2795 | -9/Recycling | Core destroyed Last Messages --------------- >>Alert(Check) Current Alert Level: 1-I 02743_ Connecting with Terminal... >>Prototypes Downloading prototype IDs... Adv. Beam Cannon Imp. Flight Unit 02744_ Connecting with Terminal... 02774_ Connecting with Recycling Unit... >>Recycling(Process) Analyzing inventory... 02790_ Slammed into R-06 Scavenger. 02790_ Y-45 Defender springs to life. 02791_ Y-45 Defender destroyed. 02791_ R-06 Scavenger collects Imp. Ion Engine. 02792_ ZK&|TET A#DXBYSG